fUST/lending_fUST_20240813
["ID","MTS","AMOUNT","RATE_DAILY","PERIOD"]
[334699598,1723482660861,-1481.47,0.00017658,2]
[334699599,1723482660871,-500.0,0.00017658,2]
[334699600,1723482660880,-547.14,0.00017658,2]
[334699601,1723482660890,-757.41,0.00017658,2]
[334699602,1723482660900,-1373.41,0.00017658,2]
[334699603,1723482660911,-500.0,0.00017667,2]
[334699604,1723482661037,-500.0,0.00017668,2]
[334699605,1723482661066,-500.0,0.00017668,2]
[334699606,1723482661077,-623.12,0.00017668,2]
[334699607,1723482661089,-552.72,0.00017668,2]
[334699608,1723482661099,-672.42,0.00017668,2]
[334699609,1723482661109,-599.83,0.00017668,2]
[334699610,1723482661119,-500.0,0.00017668,2]
[334699611,1723482661129,-500.0,0.00017668,2]
[334699612,1723482661139,-500.0,0.00017668,2]
[334699613,1723482661149,-791.7,0.00017668,2]
[334699614,1723482661159,-996.77,0.00017668,2]
[334699615,1723482661169,-500.0,0.00017668,2]
[334699616,1723482661179,-500.0,0.00017668,2]
[334699617,1723482661189,-500.0,0.00017668,2]
[334699618,1723482661199,-500.0,0.00017668,2]
[334699619,1723482661210,-805.23,0.00017668,2]
[334699620,1723482661222,-500.0,0.00017668,2]
[334699621,1723482661232,-500.0,0.00017668,2]
[334699622,1723482661242,-576.76,0.00017668,2]
[334699623,1723482661253,-500.0,0.00017668,2]
[334699624,1723482661263,-818.86,0.00017668,2]
[334699625,1723482661272,-792.06,0.00017668,2]
[334699626,1723482661282,-1169.81,0.00017668,2]
[334699627,1723482661292,-989.58,0.00017668,2]
[334699628,1723482661302,-777.48,0.00017668,2]
[334699629,1723482661312,-532.92,0.00017668,2]
[334699630,1723482661322,-4589.52,0.00017668,2]
[334699631,1723482661332,-1073.29,0.00017668,2]
[334699632,1723482661344,-862.57,0.00017668,2]
[334699633,1723482661354,-1199.42,0.00017668,2]
[334699634,1723482661363,-500.0,0.00017668,2]
[334699635,1723482661374,-856.91,0.00017668,2]
[334699636,1723482661384,-502.53,0.00017668,2]
[334699637,1723482661395,-646.48,0.00017668,2]
[334699638,1723482661406,-5542.73,0.00017668,2]
[334699639,1723482661416,-500.0,0.00017668,2]
[334699640,1723482661426,-500.0,0.00017668,2]
[334699641,1723482661435,-797.12,0.00017668,2]
[334699642,1723482661451,-1028.7,0.00017668,2]
[334699643,1723482661461,-531.41,0.00017668,2]
[334699644,1723482661472,-693.01,0.00017668,2]
[334699645,1723482661482,-603.87,0.00017668,2]
[334699646,1723482661493,-2310.68,0.00017668,2]
[334699647,1723482661503,-3390.01,0.00017668,2]
[334699648,1723482661513,-564.83,0.00017668,2]
[334699649,1723482661525,-500.0,0.00017668,2]
[334699650,1723482661535,-683.57,0.00017668,2]
[334699651,1723482661545,-1023.44,0.00017668,2]
[334699652,1723482661555,-500.0,0.00017668,2]
[334699653,1723482661565,-500.0,0.00017668,2]
[334699654,1723482661575,-500.0,0.00017668,2]
[334699655,1723482661584,-500.0,0.00017668,2]
[334699656,1723482661605,-500.0,0.00017668,2]
[334699657,1723482661615,-617.79,0.00017668,2]
[334699658,1723482661625,-500.0,0.00017668,2]
[334699659,1723482661634,-500.0,0.00017668,2]
[334699660,1723482661644,-874.28,0.00017668,2]
[334699661,1723482661654,-1051.56,0.00017668,2]
[334699662,1723482661663,-710.59,0.00017668,2]
[334699663,1723482661673,-906.67,0.00017668,2]
[334699664,1723482661683,-2754.73,0.00017668,2]
[334699665,1723482661693,-500.0,0.00017668,2]
[334699666,1723482661704,-1195.26,0.00017668,2]
[334699667,1723482661714,-834.44,0.00017669,2]
[334699668,1723482661724,-500.0,0.00017669,2]
[334699669,1723482661734,-579.12,0.00017669,2]
[334699670,1723482661744,-500.0,0.00017669,2]
[334699671,1723482661753,-500.0,0.00017669,2]
[334699672,1723482661762,-500.0,0.00017669,2]
[334699673,1723482661772,-500.0,0.00017669,2]
[334699674,1723482661782,-500.0,0.00017669,2]
[334699675,1723482661792,-586.32,0.00017669,2]
[334699676,1723482661801,-500.0,0.00017669,2]
[334699677,1723482661811,-500.0,0.00017669,2]
[334699678,1723482661821,-2029.92,0.00017669,2]
[334699679,1723482661831,-500.0,0.00017669,2]
[334699680,1723482661843,-500.0,0.00017669,2]
[334699681,1723482661853,-500.0,0.00017669,2]
[334699682,1723482661862,-500.0,0.00017669,2]
[334699683,1723482661871,-500.0,0.0001767,2]
[334699684,1723482661882,-500.0,0.00017678,2]
[334699685,1723482661892,-500.0,0.00017678,2]
[334699686,1723482661903,-511.6,0.00017678,2]
[334699687,1723482661915,-645.31,0.00017678,2]
[334699688,1723482661925,-646.51,0.00017678,2]
[334699689,1723482661936,-571.25,0.00017678,2]
[334699690,1723482661946,-500.0,0.00017678,2]
[334699691,1723482661957,-500.0,0.00017678,2]
[334699692,1723482661967,-974.88,0.00017678,2]
[334699693,1723482661978,-500.0,0.00017678,2]
[334699694,1723482661988,-1271.71,0.00017678,2]
[334699695,1723482661999,-500.0,0.00017678,2]
[334699696,1723482662008,-500.0,0.00017678,2]
[334699697,1723482662018,-503.77,0.00017678,2]
[334699698,1723482662029,-667.51,0.00017678,2]
[334699699,1723482662041,-500.0,0.00017678,2]
[334699700,1723482662051,-1036.64,0.00017678,2]
[334699701,1723482662060,-939.18,0.00017678,2]
[334699702,1723482662069,-501.81,0.00017678,2]
[334699703,1723482662078,-500.0,0.00017678,2]
[334699704,1723482662089,-500.0,0.00017678,2]
[334699705,1723482662100,-500.0,0.00017678,2]
[334699706,1723482662110,-541.47,0.00017678,2]
[334699707,1723482662120,-807.73,0.00017678,2]
[334699708,1723482662130,-1252.91,0.00017678,2]
[334699709,1723482662140,-1195.46,0.00017678,2]
[334699710,1723482662150,-1858.24,0.00017678,2]
[334699711,1723482662160,-1085.46,0.00017678,2]
[334699712,1723482662170,-536.53,0.00017678,2]
[334699713,1723482662180,-238.715235,0.00017679,2]
[334699714,1723482662189,-238.715226,0.00017679,2]
[334699715,1723482662198,-271.90748789,0.00017681,2]
[334699716,1723482662208,-513.61556766,0.00017706,2]
[334699717,1723482662218,-1000.0,0.00017742,2]
[334699718,1723482662228,-30000.0,0.00017749,2]
[334699719,1723482662237,-1000.0,0.00017812,2]
[334699720,1723482662247,-1000.0,0.00017869,2]
[334699721,1723482662256,-330.41705406,0.00017898,2]
[334699722,1723482662266,-1210.57,0.00017921,2]
[334699723,1723482662275,-806.72,0.00017921,2]
[334699724,1723482662287,-500.0,0.00017931,2]
[334699725,1723482662297,-2139.99,0.00017931,2]
[334699726,1723482662308,-8033.28,0.00017931,2]
[334699727,1723482662318,-873.01,0.00017931,2]
[334699728,1723482662328,-1377.31,0.00017931,2]
[334699729,1723482662340,-944.83,0.00017931,2]
[334699730,1723482662350,-500.0,0.00017932,2]
[334699731,1723482662359,-4309.2,0.00017932,2]
[334699732,1723482662367,-1327.45,0.00017932,2]
[334699733,1723482662377,-1061.79,0.00017932,2]
[334699734,1723482662386,-4692.37,0.00017932,2]
[334699735,1723482662396,-500.0,0.00017932,2]
[334699736,1723482662408,-1301.15,0.00017932,2]
[334699737,1723482662419,-500.0,0.00017932,2]
[334699738,1723482662429,-1477.48,0.00017932,2]
[334699739,1723482662440,-1537.7,0.00017932,2]
[334699740,1723482662454,-1492.05,0.00017932,2]
[334699741,1723482662464,-7818.96,0.00017932,2]
[334699742,1723482662474,-2345.86,0.00017932,2]
[334699743,1723482662484,-1440.32,0.00017932,2]
[334699744,1723482662496,-1481.47,0.00017932,2]
[334699745,1723482662507,-500.0,0.00017932,2]
[334699746,1723482662518,-547.14,0.00017932,2]
[334699747,1723482662529,-757.41,0.00017932,2]
[334699748,1723482662539,-1373.41,0.00017932,2]
[334699749,1723482662549,-500.0,0.00017941,2]
[334699750,1723482662559,-500.0,0.00017942,2]
[334699751,1723482662569,-500.0,0.00017942,2]
[334699752,1723482662579,-623.12,0.00017942,2]
[334699753,1723482662591,-552.72,0.00017942,2]
[334699754,1723482662600,-672.42,0.00017942,2]
[334699755,1723482662610,-599.83,0.00017942,2]
[334699756,1723482662619,-500.0,0.00017942,2]
[334699757,1723482662630,-500.0,0.00017942,2]
[334699758,1723482662639,-500.0,0.00017942,2]
[334699759,1723482662649,-791.7,0.00017942,2]
[334699760,1723482662659,-996.77,0.00017942,2]
[334699761,1723482662669,-500.0,0.00017942,2]
[334699762,1723482662679,-500.0,0.00017942,2]
[334699763,1723482662689,-500.0,0.00017942,2]
[334699764,1723482662698,-500.0,0.00017942,2]
[334699765,1723482662707,-805.23,0.00017942,2]
[334699766,1723482662718,-500.0,0.00017942,2]
[334699767,1723482662728,-500.0,0.00017942,2]
[334699768,1723482662738,-576.76,0.00017942,2]
[334699769,1723482662748,-497.03434909,0.00017942,2]
[334699770,1723482662757,-818.86,0.00017942,2]
[334699771,1723482662768,-792.06,0.00017942,2]
[334699772,1723482662778,-1169.81,0.00017942,2]
[334699773,1723482662787,-989.58,0.00017942,2]
[334699774,1723482662797,-777.48,0.00017942,2]
[334699775,1723482662806,-532.92,0.00017942,2]
[334699776,1723482662817,-4589.52,0.00017942,2]
[334699777,1723482662829,-1073.29,0.00017942,2]
[334699778,1723482662840,-862.57,0.00017942,2]
[334699779,1723482662849,-1199.42,0.00017942,2]
[334699780,1723482662859,-500.0,0.00017942,2]
[334699781,1723482662869,-856.91,0.00017942,2]
[334699782,1723482662881,-502.53,0.00017942,2]
[334699783,1723482662891,-646.48,0.00017942,2]
[334699784,1723482662902,-5542.73,0.00017942,2]
[334699785,1723482662913,-500.0,0.00017942,2]
[334699786,1723482662923,-500.0,0.00017942,2]
[334699787,1723482662933,-797.12,0.00017942,2]
[334699788,1723482662945,-1028.7,0.00017942,2]
[334699789,1723482662956,-531.41,0.00017942,2]
[334699790,1723482662966,-693.01,0.00017942,2]
[334699791,1723482662976,-603.87,0.00017942,2]
[334699792,1723482662986,-2310.68,0.00017942,2]
[334699793,1723482662996,-3390.01,0.00017942,2]
[334699794,1723482663006,-564.83,0.00017942,2]
[334699795,1723482663016,-500.0,0.00017942,2]
[334699796,1723482663026,-683.57,0.00017942,2]
[334699797,1723482663036,-1023.44,0.00017942,2]
[334699798,1723482663046,-500.0,0.00017942,2]
[334699799,1723482663056,-500.0,0.00017942,2]
[334699800,1723482663066,-500.0,0.00017942,2]
[334699801,1723482663076,-500.0,0.00017942,2]
[334699802,1723482663086,-500.0,0.00017942,2]
[334699803,1723482663097,-617.79,0.00017942,2]
[334699804,1723482663106,-500.0,0.00017942,2]
[334699805,1723482663117,-500.0,0.00017942,2]
[334699806,1723482663126,-874.28,0.00017942,2]
[334699807,1723482663136,-1051.56,0.00017942,2]
[334699808,1723482663146,-710.59,0.00017942,2]
[334699809,1723482663215,-906.67,0.00017942,2]
[334699810,1723482663224,-2754.73,0.00017942,2]
[334699811,1723482663234,-500.0,0.00017942,2]
[334699812,1723482663244,-1195.26,0.00017942,2]
[334699813,1723482663255,-400.0,0.00017942,2]
[334699814,1723482663264,-400.0,0.00017942,2]
[334699815,1723482663274,-400.0,0.00017942,2]
[334699816,1723482663283,-400.0,0.00017942,2]
[334699817,1723482663294,-400.0,0.00017942,2]
[334699818,1723482663304,-834.44,0.00017943,2]
[334699819,1723482663315,-500.0,0.00017943,2]
[334699820,1723482663326,-579.12,0.00017943,2]
[334699821,1723482663336,-500.0,0.00017943,2]
[334699822,1723482663346,-500.0,0.00017943,2]
[334699823,1723482663355,-500.0,0.00017943,2]
[334699824,1723482663364,-500.0,0.00017943,2]
[334699825,1723482663374,-500.0,0.00017943,2]
[334699826,1723482663383,-586.32,0.00017943,2]
[334699827,1723482663393,-500.0,0.00017943,2]
[334699828,1723482663402,-500.0,0.00017943,2]
[334699829,1723482663411,-2029.92,0.00017943,2]
[334699830,1723482663421,-500.0,0.00017943,2]
[334699831,1723482663430,-500.0,0.00017943,2]
[334699832,1723482663441,-500.0,0.00017943,2]
[334699833,1723482663452,-500.0,0.00017943,2]
[334699834,1723482663462,-500.0,0.00017952,2]
[334699835,1723482663473,-500.0,0.00017952,2]
[334699836,1723482663482,-511.6,0.00017952,2]
[334699837,1723482663491,-645.31,0.00017952,2]
[334699838,1723482663501,-646.51,0.00017952,2]
[334699839,1723482663511,-571.25,0.00017952,2]
[334699840,1723482663521,-500.0,0.00017952,2]
[334699841,1723482663533,-500.0,0.00017952,2]
[334699842,1723482663543,-974.88,0.00017952,2]
[334699843,1723482663553,-500.0,0.00017952,2]
[334699844,1723482663563,-1271.71,0.00017952,2]
[334699845,1723482663572,-500.0,0.00017952,2]
[334699846,1723482663582,-500.0,0.00017952,2]
[334699847,1723482663595,-503.77,0.00017952,2]
[334699848,1723482663605,-667.51,0.00017952,2]
[334699849,1723482663615,-500.0,0.00017952,2]
[334699850,1723482663625,-1036.64,0.00017952,2]
[334699851,1723482663634,-939.18,0.00017952,2]
[334699852,1723482663644,-501.81,0.00017952,2]
[334699853,1723482663654,-500.0,0.00017952,2]
[334699854,1723482663664,-500.0,0.00017952,2]
[334699855,1723482663674,-500.0,0.00017952,2]
[334699856,1723482663684,-541.47,0.00017952,2]
[334699857,1723482663694,-807.73,0.00017952,2]
[334699858,1723482663704,-1252.91,0.00017952,2]
[334699859,1723482663715,-1195.46,0.00017952,2]
[334699860,1723482663724,-1858.24,0.00017952,2]
[334699861,1723482663733,-1085.46,0.00017952,2]
[334699862,1723482663743,-536.53,0.00017952,2]
[334699863,1723482663753,-245.09758384,0.00018,2]
[334699864,1723482663763,-472.28479668,0.00018,2]
[334699865,1723482663774,-5240.8431686,0.00018,2]
[334699866,1723482663785,-222.83730098,0.00018,2]
[334699867,1723482663794,-1210.57,0.00018195,2]
[334699868,1723482663804,-806.72,0.00018195,2]
[334699869,1723482663813,-500.0,0.00018205,2]
[334699870,1723482663823,-2139.99,0.00018205,2]
[334699871,1723482663833,-8033.28,0.00018205,2]
[334699872,1723482663844,-873.01,0.00018205,2]
[334699873,1723482663854,-1377.31,0.00018205,2]
[334699874,1723482663864,-944.83,0.00018205,2]
[334699875,1723482663874,-500.0,0.00018206,2]
[334699876,1723482663884,-4309.2,0.00018206,2]
[334699877,1723482663893,-1327.45,0.00018206,2]
[334699878,1723482663904,-1061.79,0.00018206,2]
[334699879,1723482663914,-4692.37,0.00018206,2]
[334699880,1723482663924,-500.0,0.00018206,2]
[334699881,1723482663934,-1301.15,0.00018206,2]
[334699882,1723482663943,-500.0,0.00018206,2]
[334699883,1723482663953,-1477.48,0.00018206,2]
[334699884,1723482663963,-1537.7,0.00018206,2]
[334699885,1723482663973,-1492.05,0.00018206,2]
[334699886,1723482663983,-7818.96,0.00018206,2]
[334699887,1723482663993,-2345.86,0.00018206,2]
[334699888,1723482664004,-1481.47,0.00018206,2]
[334699889,1723482664014,-404.53766025,0.00018206,2]
[334699890,1723482664025,-547.14,0.00018206,2]
[334699891,1723482664035,-757.41,0.00018206,2]
[334699892,1723482664045,-1373.41,0.00018206,2]
[334699893,1723482664056,-500.0,0.00018215,2]
[334699894,1723482664066,-500.0,0.00018216,2]
[334699895,1723482664076,-500.0,0.00018216,2]
[334699896,1723482664086,-623.12,0.00018216,2]
[334699897,1723482664098,-552.72,0.00018216,2]
[334699898,1723482664108,-672.42,0.00018216,2]
[334699899,1723482664118,-599.83,0.00018216,2]
[334699900,1723482664128,-500.0,0.00018216,2]
[334699901,1723482664137,-500.0,0.00018216,2]
[334699902,1723482664147,-500.0,0.00018216,2]
[334699903,1723482664157,-791.7,0.00018216,2]
[334699904,1723482664167,-996.77,0.00018216,2]
[334699905,1723482664177,-500.0,0.00018216,2]
[334699906,1723482664187,-500.0,0.00018216,2]
[334699907,1723482664197,-500.0,0.00018216,2]
[334699908,1723482664207,-500.0,0.00018216,2]
[334699909,1723482664219,-805.23,0.00018216,2]
[334699910,1723482664229,-500.0,0.00018216,2]
[334699911,1723482664240,-500.0,0.00018216,2]
[334699912,1723482664252,-576.76,0.00018216,2]
[334699913,1723482664263,-818.86,0.00018216,2]
[334699914,1723482664274,-792.06,0.00018216,2]
[334699915,1723482664284,-1169.81,0.00018216,2]
[334699916,1723482664295,-989.58,0.00018216,2]
[334699917,1723482664305,-777.48,0.00018216,2]
[334699918,1723482664316,-532.92,0.00018216,2]
[334699919,1723482664326,-4589.52,0.00018216,2]
[334699920,1723482664336,-1073.29,0.00018216,2]
[334699921,1723482664348,-862.57,0.00018216,2]
[334699922,1723482664357,-1199.42,0.00018216,2]
[334699923,1723482664367,-500.0,0.00018216,2]
[334699924,1723482664377,-856.91,0.00018216,2]
[334699925,1723482664387,-502.53,0.00018216,2]
[334699926,1723482664396,-646.48,0.00018216,2]
[334699927,1723482664406,-5542.73,0.00018216,2]
[334699928,1723482664417,-500.0,0.00018216,2]
[334699929,1723482664427,-500.0,0.00018216,2]
[334699930,1723482664438,-797.12,0.00018216,2]
[334699931,1723482664452,-1028.7,0.00018216,2]
[334699932,1723482664462,-531.41,0.00018216,2]
[334699933,1723482664472,-693.01,0.00018216,2]
[334699934,1723482664483,-603.87,0.00018216,2]
[334699935,1723482664494,-2310.68,0.00018216,2]
[334699936,1723482664504,-3390.01,0.00018216,2]
[334699937,1723482664514,-564.83,0.00018216,2]
[334699938,1723482664525,-500.0,0.00018216,2]
[334699939,1723482664536,-683.57,0.00018216,2]
[334699940,1723482664545,-1023.44,0.00018216,2]
[334699941,1723482664555,-392.47047263,0.00018216,2]
[334699942,1723482664565,-500.0,0.00018216,2]
[334699943,1723482664574,-500.0,0.00018216,2]
[334699944,1723482664584,-500.0,0.00018216,2]
[334699945,1723482664595,-500.0,0.00018216,2]
[334699946,1723482664605,-617.79,0.00018216,2]
[334699947,1723482664615,-500.0,0.00018216,2]
[334699948,1723482664624,-500.0,0.00018216,2]
[334699949,1723482664635,-874.28,0.00018216,2]
[334699950,1723482664644,-1051.56,0.00018216,2]
[334699951,1723482664655,-710.59,0.00018216,2]
[334699952,1723482664665,-906.67,0.00018216,2]
[334699953,1723482664676,-2754.73,0.00018216,2]
[334699954,1723482664686,-500.0,0.00018216,2]
[334699955,1723482664696,-1195.26,0.00018216,2]
[334699956,1723482664705,-834.44,0.00018217,2]
[334699957,1723482664716,-500.0,0.00018217,2]
[334699958,1723482664725,-579.12,0.00018217,2]
[334699959,1723482664736,-500.0,0.00018217,2]
[334699960,1723482664746,-500.0,0.00018217,2]
[334699961,1723482664756,-500.0,0.00018217,2]
[334699962,1723482664765,-500.0,0.00018217,2]
[334699963,1723482664774,-500.0,0.00018217,2]
[334699964,1723482664784,-586.32,0.00018217,2]
[334699965,1723482664793,-500.0,0.00018217,2]
[334699966,1723482664803,-248.83221355,0.00018217,2]
[334699967,1723482664812,-2029.92,0.00018217,2]
[334699968,1723482664821,-500.0,0.00018217,2]
[334699969,1723482664831,-500.0,0.00018217,2]
[334699970,1723482664842,-500.0,0.00018217,2]
[334699971,1723482664852,-500.0,0.00018217,2]
[334699972,1723482664861,-463.0464652,0.00018226,2]
[334699973,1723482664870,-500.0,0.00018226,2]
[334699974,1723482664880,-511.6,0.00018226,2]
[334699975,1723482664890,-645.31,0.00018226,2]
[334699976,1723482664899,-646.51,0.00018226,2]
[334699977,1723482664908,-571.25,0.00018226,2]
[334699978,1723482664918,-500.0,0.00018226,2]
[334699979,1723482664927,-500.0,0.00018226,2]
[334699980,1723482664937,-974.88,0.00018226,2]
[334699981,1723482664946,-500.0,0.00018226,2]
[334699982,1723482664956,-1271.71,0.00018226,2]
[334699983,1723482664965,-500.0,0.00018226,2]
[334699984,1723482664974,-500.0,0.00018226,2]
[334699985,1723482664984,-503.77,0.00018226,2]
[334699986,1723482664994,-667.51,0.00018226,2]
[334699987,1723482665003,-500.0,0.00018226,2]
[334699988,1723482665014,-1036.64,0.00018226,2]
[334699989,1723482665023,-939.18,0.00018226,2]
[334699990,1723482665033,-501.81,0.00018226,2]
[334699991,1723482665043,-500.0,0.00018226,2]
[334699992,1723482665052,-500.0,0.00018226,2]
[334699993,1723482665062,-500.0,0.00018226,2]
[334699994,1723482665072,-541.47,0.00018226,2]
[334699995,1723482665082,-807.73,0.00018226,2]
[334699996,1723482665093,-1252.91,0.00018226,2]
[334699997,1723482665111,-1195.46,0.00018226,2]
[334699998,1723482665121,-1858.24,0.00018226,2]
[334699999,1723482665131,-1085.46,0.00018226,2]
[334700000,1723482665141,-536.53,0.00018226,2]
[334700001,1723482665150,-474.52316631,0.00018335,2]
[334700002,1723482665161,-1210.57,0.00018469,2]
[334700003,1723482665170,-806.72,0.00018469,2]
[334700004,1723482665179,-500.0,0.00018479,2]
[334700005,1723482665190,-2139.99,0.00018479,2]
[334700006,1723482665200,-8033.28,0.00018479,2]
[334700007,1723482665210,-873.01,0.00018479,2]
[334700008,1723482665219,-1377.31,0.00018479,2]
[334700009,1723482665229,-944.83,0.00018479,2]
[334700010,1723482665239,-500.0,0.0001848,2]
[334700011,1723482665248,-4309.2,0.0001848,2]
[334700012,1723482665258,-1327.45,0.0001848,2]
[334700013,1723482665269,-1061.79,0.0001848,2]
[334700014,1723482665278,-4692.37,0.0001848,2]
[334700015,1723482665288,-500.0,0.0001848,2]
[334700016,1723482665298,-1301.15,0.0001848,2]
[334700017,1723482665308,-500.0,0.0001848,2]
[334700018,1723482665317,-1477.48,0.0001848,2]
[334700019,1723482665327,-1537.7,0.0001848,2]
[334700020,1723482665337,-1492.05,0.0001848,2]
[334700021,1723482665348,-7818.96,0.0001848,2]
[334700022,1723482665358,-2345.86,0.0001848,2]
[334700023,1723482665368,-1481.47,0.0001848,2]
[334700024,1723482665377,-547.14,0.0001848,2]
[334700025,1723482665387,-757.41,0.0001848,2]
[334700026,1723482665397,-1373.41,0.0001848,2]
[334700027,1723482665406,-500.0,0.00018489,2]
[334700028,1723482665416,-500.0,0.0001849,2]
[334700029,1723482665428,-360.73464632,0.0001849,2]
[334700030,1723482665441,-623.12,0.0001849,2]
[334700031,1723482665454,-552.72,0.0001849,2]
[334700032,1723482665464,-672.42,0.0001849,2]
[334700033,1723482665474,-599.83,0.0001849,2]
[334700034,1723482665483,-399.79001658,0.0001849,2]
[334700035,1723482665494,-500.0,0.0001849,2]
[334700036,1723482665503,-500.0,0.0001849,2]
[334700037,1723482665513,-791.7,0.0001849,2]
[334700038,1723482665522,-996.77,0.0001849,2]
[334700039,1723482665534,-500.0,0.0001849,2]
[334700040,1723482665545,-500.0,0.0001849,2]
[334700041,1723482665555,-500.0,0.0001849,2]
[334700042,1723482665564,-500.0,0.0001849,2]
[334700043,1723482665574,-805.23,0.0001849,2]
[334700044,1723482665584,-500.0,0.0001849,2]
[334700045,1723482665596,-500.0,0.0001849,2]
[334700046,1723482665605,-576.76,0.0001849,2]
[334700047,1723482665616,-818.86,0.0001849,2]
[334700048,1723482665625,-792.06,0.0001849,2]
[334700049,1723482665634,-1169.81,0.0001849,2]
[334700050,1723482665644,-989.58,0.0001849,2]
[334700051,1723482665654,-777.48,0.0001849,2]
[334700052,1723482665664,-532.92,0.0001849,2]
[334700053,1723482665674,-4589.52,0.0001849,2]
[334700054,1723482665683,-1073.29,0.0001849,2]
[334700055,1723482665694,-862.57,0.0001849,2]
[334700056,1723482665704,-1199.42,0.0001849,2]
[334700057,1723482665716,-500.0,0.0001849,2]
[334700058,1723482665726,-856.91,0.0001849,2]
[334700059,1723482665736,-502.53,0.0001849,2]
[334700060,1723482665746,-646.48,0.0001849,2]
[334700061,1723482665756,-5542.73,0.0001849,2]
[334700062,1723482665765,-500.0,0.0001849,2]
[334700063,1723482665775,-202.11750102,0.0001849,2]
[334700064,1723482665785,-797.12,0.0001849,2]
[334700065,1723482665795,-1028.7,0.0001849,2]
[334700066,1723482665805,-531.41,0.0001849,2]
[334700067,1723482665815,-693.01,0.0001849,2]
[334700068,1723482665826,-603.87,0.0001849,2]
[334700069,1723482665836,-2310.68,0.0001849,2]
[334700070,1723482665851,-3390.01,0.0001849,2]
[334700071,1723482665863,-564.83,0.0001849,2]
[334700072,1723482665975,-500.0,0.0001849,2]
[334700073,1723482665990,-683.57,0.0001849,2]
[334700074,1723482666000,-1023.44,0.0001849,2]
[334700075,1723482666011,-500.0,0.0001849,2]
[334700076,1723482666023,-500.0,0.0001849,2]
[334700077,1723482666034,-500.0,0.0001849,2]
[334700078,1723482666045,-500.0,0.0001849,2]
[334700079,1723482666056,-617.79,0.0001849,2]
[334700080,1723482666066,-500.0,0.0001849,2]
[334700081,1723482666075,-500.0,0.0001849,2]
[334700082,1723482666085,-874.28,0.0001849,2]
[334700083,1723482666097,-1051.56,0.0001849,2]
[334700084,1723482666106,-710.59,0.0001849,2]
[334700085,1723482666115,-906.67,0.0001849,2]
[334700086,1723482666125,-2754.73,0.0001849,2]
[334700087,1723482666134,-367.6026929,0.0001849,2]
[334700088,1723482666144,-1195.26,0.0001849,2]
[334700089,1723482666154,-834.44,0.00018491,2]
[334700090,1723482666163,-500.0,0.00018491,2]
[334700091,1723482666172,-579.12,0.00018491,2]
[334700092,1723482666182,-500.0,0.00018491,2]
[334700093,1723482666192,-500.0,0.00018491,2]
[334700094,1723482666201,-500.0,0.00018491,2]
[334700095,1723482666211,-500.0,0.00018491,2]
[334700096,1723482666222,-500.0,0.00018491,2]
[334700097,1723482666234,-586.32,0.00018491,2]